fUSD/lending_fUSD_20251011
["ID","MTS","AMOUNT","RATE_DAILY","PERIOD"]
[390811508,1760169032513,-151.0,0.00014378,2]
[390811509,1760169032523,-500.0,0.00014378,2]
[390811510,1760169032531,-151.0,0.00014378,2]
[390811511,1760169032541,-500.0,0.00014378,2]
[390811512,1760169032550,-151.0,0.00014378,2]
[390811513,1760169032559,-500.0,0.00014378,2]
[390811514,1760169032568,-151.0,0.00014378,2]
[390811515,1760169032577,-500.0,0.00014378,2]
[390811516,1760169032586,-151.0,0.00014378,2]
[390811517,1760169032595,-500.0,0.00014378,2]
[390811518,1760169032604,-151.0,0.00014378,2]
[390811519,1760169032613,-500.0,0.00014378,2]
[390811520,1760169032623,-151.0,0.00014378,2]
[390811521,1760169032632,-151.0,0.00014378,2]
[390811522,1760169032641,-151.0,0.00014378,2]
[390811523,1760169032652,-151.0,0.00014378,2]
[390811524,1760169032661,-151.0,0.00014378,2]
[390811525,1760169032671,-166.11792328,0.00014378,2]
[390811526,1760169032680,-151.0,0.00014378,2]
[390811527,1760169032689,-151.0,0.00014378,2]
[390811528,1760169032699,-151.0,0.00014378,2]
[390811529,1760169032708,-151.0,0.00014378,2]
[390811530,1760169032718,-151.0,0.00014378,2]
[390811531,1760169032728,-151.0,0.00014378,2]
[390811532,1760169032738,-151.0,0.00014378,2]
[390811533,1760169032747,-151.0,0.00014378,2]
[390811534,1760169032756,-151.0,0.00014378,2]
[390811535,1760169032768,-151.0,0.00014378,2]
[390811536,1760169032779,-151.0,0.00014378,2]
[390811537,1760169032788,-151.0,0.00014378,2]
[390811538,1760169032798,-151.0,0.00014378,2]
[390811539,1760169032807,-151.0,0.00014378,2]
[390811540,1760169032819,-151.0,0.00014378,2]
[390811541,1760169032828,-151.0,0.00014378,2]
[390811542,1760169032838,-151.0,0.00014378,2]
[390811543,1760169032848,-151.0,0.00014378,2]
[390811544,1760169032858,-151.0,0.00014378,2]
[390811545,1760169032868,-151.0,0.00014378,2]
[390811546,1760169032877,-2000.0,0.00014387,2]
[390811547,1760169032886,-2000.0,0.00014387,2]
[390811548,1760169032896,-2000.0,0.00014387,2]
[390811549,1760169032906,-2000.0,0.00014387,2]
[390811550,1760169032915,-2000.0,0.00014387,2]
[390811551,1760169032924,-2000.0,0.00014387,2]
[390811552,1760169032934,-2000.0,0.00014387,2]
[390811553,1760169032943,-2000.0,0.00014387,2]
[390811554,1760169032952,-2000.0,0.00014387,2]
[390811555,1760169032962,-2000.0,0.00014387,2]
[390811556,1760169032972,-2000.0,0.00014387,2]
[390811557,1760169032981,-2000.0,0.00014387,2]
[390811558,1760169032990,-2000.0,0.00014387,2]
[390811559,1760169032999,-2000.0,0.00014387,2]
[390811560,1760169033008,-2000.0,0.00014387,2]
[390811561,1760169033018,-1000.0,0.00014387,2]
[390811562,1760169033313,-1000.0,0.00014387,2]
[390811563,1760169033322,-1000.0,0.00014387,2]
[390811564,1760169033331,-1000.0,0.00014387,2]
[390811565,1760169033340,-1000.0,0.00014387,2]
[390811566,1760169033349,-1000.0,0.00014387,2]
[390811567,1760169033358,-1000.0,0.00014387,2]
[390811568,1760169033367,-1202.0,0.00014396,2]
[390811569,1760169033376,-413.23,0.000144,2]
[390811570,1760169033385,-474.32,0.000144,2]
[390811571,1760169033397,-1674.0,0.00014467,2]
[390811572,1760169033406,-162.7,0.00014489,2]
[390811573,1760169033416,-439.65,0.00014509,2]
[390811574,1760169033426,-251.0,0.00014512,2]
[390811575,1760169033435,-302.0,0.00014536,2]
[390811576,1760169033444,-305.0,0.00014584,2]
[390811577,1760169033453,-546.15,0.000146,2]
[390811578,1760169033463,-546.15,0.000146,2]
[390811579,1760169033472,-546.15,0.000146,2]
[390811580,1760169033481,-474.32,0.000146,2]
[390811581,1760169033490,-825.12,0.000146,2]
[390811582,1760169033499,-825.7,0.000146,2]
[390811583,1760169033508,-336.14,0.00014611,2]
[390811584,1760169033518,-335.76,0.00014611,2]
[390811585,1760169033528,-168.0,0.00014627,2]
[390811586,1760169033537,-1472.21,0.00014675,2]
[390811587,1760169033547,-1674.18,0.00014675,2]
[390811588,1760169033556,-808.18,0.00014675,2]
[390811589,1760169033565,-546.15,0.000147,2]
[390811590,1760169033574,-168.0,0.00014734,2]
[390811591,1760169033583,-574.76825743,0.00014755,2]
[390811592,1760169033592,-1465.59918523,0.00014757,2]
[390811593,1760169033601,-724.05,0.0001477,2]
[390811594,1760169033611,-546.15,0.000148,2]
[390811595,1760169033620,-546.15,0.000148,2]
[390811596,1760169033629,-269.18278182,0.000148,2]
[390811597,1760169033645,-278.4271,0.000148,2]
[390811598,1760169033659,-800.94,0.00014819,2]
[390811599,1760169033669,-741.02207,0.0001485,2]
[390811600,1760169033679,-906.57122082,0.00014873,2]
[390811601,1760169033688,-906.57122076,0.00014876,2]
[390811602,1760169033698,-906.57122076,0.00014879,2]
[390811603,1760169033707,-200.0,0.0001488,2]
[390811604,1760169033716,-906.57122076,0.00014882,2]
[390811605,1760169033726,-906.57122076,0.00014885,2]
[390811606,1760169033735,-906.57122076,0.00014888,2]
[390811607,1760169033745,-906.57122076,0.00014891,2]
[390811608,1760169033754,-906.57122076,0.00014894,2]
[390811609,1760169033766,-906.57122076,0.00014897,2]
[390811610,1760169033778,-360.18019085,0.00014899,2]
[390811611,1760169033787,-1925.11622719,0.000149,2]
[390811612,1760169033797,-500.0,0.000149,2]
[390811613,1760169033807,-500.0,0.000149,2]
[390811614,1760169033817,-500.0,0.000149,2]
[390811615,1760169033827,-500.0,0.000149,2]
[390811616,1760169033836,-500.0,0.000149,2]
[390811617,1760169033847,-500.0,0.000149,2]
[390811618,1760169033857,-500.0,0.000149,2]
[390811619,1760169033866,-500.0,0.000149,2]
[390811620,1760169033876,-500.0,0.000149,2]
[390811621,1760169033885,-500.0,0.000149,2]
[390811622,1760169033896,-500.0,0.000149,2]
[390811623,1760169033905,-500.0,0.000149,2]
[390811624,1760169033915,-500.0,0.000149,2]
[390811625,1760169033924,-500.0,0.000149,2]
[390811626,1760169033933,-500.0,0.000149,2]
[390811627,1760169033943,-500.0,0.000149,2]
[390811628,1760169033954,-500.0,0.000149,2]
[390811629,1760169033963,-500.0,0.000149,2]
[390811630,1760169033973,-500.0,0.000149,2]
[390811631,1760169033982,-500.0,0.000149,2]
[390811632,1760169033992,-435.0702843,0.000149,2]
[390811633,1760169034002,-5000.0,0.000149,2]
[390811634,1760169034011,-11133.87840391,0.000149,2]
[390811635,1760169034021,-1635.56,0.000149,2]
[390811636,1760169034030,-896.17249711,0.000149,2]
[390811637,1760169034039,-906.57122076,0.000149,2]
[390811638,1760169034056,-9126.27569091,0.000149,2]
[390811639,1760169034067,-383.03546767,0.000149,2]
[390811640,1760169034077,-24075.2685321,0.000149,2]
[390811641,1760169035089,-388.2309658,0.000149,2]
[390811642,1760169035264,-827.08001256,0.000149,2]
[390811643,1760169035276,-901.10174643,0.000149,2]
[390811644,1760169035291,-11569.10912033,0.000149,2]
[390811675,1760169038443,-1191.9,0.000149,2]
[390811676,1760169038522,-1385.8236231,0.000149,2]
[390811677,1760169038533,-1123.29546481,0.000149,2]
[390811678,1760169038560,-25845.02899767,0.000149,2]
[390811679,1760169038569,-191.64836349,0.000149,2]
[390811680,1760169038579,-1387.71839391,0.000149,2]
[390811681,1760169038587,-1000.0,0.000149,2]
[390811682,1760169038595,-377.89,0.00014916,2]
[390811683,1760169038604,-200.0,0.00014926,2]
[390811684,1760169038614,-752.0,0.00014933,2]
[390811685,1760169038624,-1450.29489426,0.00014939,2]
[390811686,1760169038633,-168.0,0.00014951,2]
[390811687,1760169038643,-391.18611601,0.00014957,2]
[390811688,1760169038658,-500.0,0.00014973,2]
[390811689,1760169038668,-500.0,0.00014973,2]
[390811690,1760169038678,-398.15188537,0.00014973,2]
[390811691,1760169038688,-500.0,0.00014973,2]
[390811692,1760169038698,-404.41870018,0.00014973,2]
[390811693,1760169038707,-500.0,0.00014973,2]
[390811694,1760169038716,-500.0,0.00014973,2]
[390811695,1760169038725,-500.0,0.00014973,2]
[390811696,1760169038735,-500.0,0.00014973,2]
[390811697,1760169038744,-500.0,0.00014973,2]
[390811698,1760169038753,-500.0,0.00014973,2]
[390811699,1760169038764,-500.0,0.00014973,2]
[390811700,1760169038778,-632.10678544,0.00014973,2]
[390811701,1760169038788,-500.0,0.00014973,2]
[390811702,1760169038797,-500.0,0.00014973,2]
[390811703,1760169038808,-500.0,0.00014973,2]
[390811704,1760169038817,-500.0,0.00014973,2]
[390811705,1760169038827,-500.0,0.00014973,2]
[390811706,1760169038837,-500.59683785,0.00014973,2]
[390811707,1760169038847,-471.79906783,0.00014973,2]
[390811708,1760169038856,-500.0,0.00014973,2]
[390811709,1760169038866,-741.02207,0.0001498,2]
[390811710,1760169038875,-166.66,0.00014985,2]
[390811711,1760169038884,-152.95865123,0.0001499,2]
[390811712,1760169038894,-150.0,0.0001499,2]
[390811713,1760169038904,-150.0,0.0001499,2]
[390811714,1760169038914,-500.0,0.0001499,2]
[390811715,1760169038923,-150.0,0.0001499,2]
[390811716,1760169038933,-150.0,0.0001499,2]
[390811717,1760169038943,-150.0,0.0001499,2]
[390811718,1760169038952,-150.0,0.0001499,2]
[390811719,1760169038962,-500.0,0.0001499,2]
[390811720,1760169038971,-500.0,0.0001499,2]
[390811721,1760169038980,-500.0,0.0001499,2]
[390811722,1760169038990,-150.0,0.0001499,2]
[390811723,1760169038999,-150.0,0.0001499,2]
[390811724,1760169039009,-500.0,0.0001499,2]
[390811725,1760169039019,-150.0,0.0001499,2]
[390811726,1760169039028,-500.0,0.0001499,2]
[390811727,1760169039038,-150.0,0.0001499,2]
[390811728,1760169039047,-582.0,0.0001499,2]
[390811729,1760169039056,-500.0,0.0001499,2]
[390811730,1760169039070,-250.56704561,0.0001499,2]
[390811731,1760169039087,-500.0,0.0001499,2]
[390811732,1760169039097,-150.0,0.0001499,2]
[390811733,1760169039106,-150.0,0.0001499,2]
[390811734,1760169039115,-150.0,0.0001499,2]
[390811735,1760169039125,-150.0,0.0001499,2]
[390811736,1760169039134,-150.0,0.0001499,2]
[390811737,1760169039143,-293.16218592,0.0001499,2]
[390811738,1760169039158,-150.0,0.0001499,2]
[390811739,1760169039168,-150.0,0.0001499,2]
[390811740,1760169039178,-150.0,0.0001499,2]
[390811741,1760169039188,-499.0,0.0001499,2]
[390811742,1760169039198,-377.89,0.0001499,2]
[390811743,1760169039208,-377.89,0.0001499,2]
[390811744,1760169039217,-377.89,0.0001499,2]
[390811745,1760169039227,-377.89,0.0001499,2]
[390811746,1760169039236,-1285.7023375,0.00014998,2]
[390811747,1760169039246,-1483.2943583,0.00014998,2]
[390811748,1760169039255,-272.516,0.00014999,2]
[390811749,1760169039265,-150.0,0.00014999,2]
[390811750,1760169039275,-2720.0,0.00015,2]
[390811751,1760169039285,-9555711.03135897,0.00015,2]
[390811752,1760169039295,-7874.71377308,0.00015,2]
[390811753,1760169039305,-297602.52559191,0.00015,7]
[390811754,1760169039314,-137207.88842217,0.00015,2]
[390811755,1760169039327,-500.0,0.00015,2]
[390811756,1760169039357,-4639.44716856,0.00015,2]
[390811757,1760169039371,-62803.99214217,0.00015,2]
[390811758,1760169039382,-645.60003344,0.00015,2]
[390811759,1760169039393,-30401.12561014,0.00015,2]
[390811766,1760169040732,-158289.7258598,0.00015,2]
[390811767,1760169040744,-1514.85,0.00015,2]
[390811884,1760169043048,-487.83153482,0.00015,2]
[390811885,1760169043059,-258.0581916,0.00015,2]
[390811940,1760169046433,-3010.83165156,0.00015,2]
[390811943,1760169046444,-3640.99372931,0.00015,2]
[390811945,1760169046455,-1110.888,0.00015,2]
[390811947,1760169046465,-325.3192722,0.00015,2]
[390811952,1760169046503,-369813.06722696,0.00015,2]
[390811971,1760169046676,-1109.7,0.00015,2]
[390811973,1760169046689,-2410.7,0.00015,2]
[390812022,1760169252014,719.72,0.00027397,120]
[390812043,1760169494395,250.0,0.00013857,7]
[390812047,1760169622892,160.0,0.00027397,120]
[390812048,1760169623492,151.0,0.00027397,120]
[390812049,1760169623669,151.0,0.00027397,120]
[390812050,1760169623981,160.0,0.00027397,120]
[390812051,1760169626791,151.0,0.00027397,120]
[390812052,1760169627372,151.0,0.00027397,120]
[390812053,1760169627653,151.0,0.00027397,120]
[390812054,1760169627771,167.12318267,0.00027397,120]
[390812055,1760169627990,151.0,0.00027397,120]
[390812056,1760169628364,160.0,0.00027397,120]
[390812057,1760169628575,156.0,0.00027397,120]
[390812058,1760169628687,163.11003767,0.00027397,120]
[390812059,1760169629096,151.0,0.00027397,120]
[390812060,1760169629285,156.0,0.00027397,120]
[390812061,1760169629833,156.0,0.00027397,120]
[390812062,1760169630469,164.33044505,0.00027397,120]
[390812075,1760169921237,151.0,0.00027397,120]
[390812076,1760169921801,151.0,0.00027397,120]
[390812077,1760169922382,151.0,0.00027397,120]
[390812078,1760169923421,151.0,0.00027397,120]
[390812079,1760169933628,156.0,0.00027397,120]
[390812080,1760169934261,156.0,0.00027397,120]
[390812081,1760169945034,200.0,0.00013699,2]
[390812082,1760169989062,1600.0,0.00013556,2]
[390812083,1760170006166,250.0,0.00013544,2]
[390812084,1760170008989,152.0,0.00027397,120]
[390812085,1760170061617,-300.0,0.00014,10]
[390812086,1760170077932,1852.42,0.0001355,2]
[390812087,1760170087488,-2000.0,0.00014,10]
[390812088,1760170117079,-16.2192143,0.00014,10]
[390812089,1760170117102,-500.0,0.00014025,2]
[390812090,1760170117126,-300.0,0.0001405,2]
[390812091,1760170117152,-2000.0,0.0001405,2]
[390812092,1760170117175,-500.0,0.00014066,2]
[390812093,1760170117200,-500.0,0.00014066,2]
[390812094,1760170117224,-500.0,0.00014066,2]
[390812095,1760170117253,-1200.0,0.0001409,2]
[390812096,1760170117278,-300.0,0.0001409,2]
[390812097,1760170117301,-2000.0,0.00014091,2]
[390812098,1760170117326,-300.0,0.00014099,2]
[390812099,1760170117350,-1883.7807857,0.000141,2]
[390812103,1760170137677,-1259.54919777,0.000141,2]
[390812104,1760170137702,-1907.91637529,0.00014137,2]
[390812105,1760170137725,-150.0,0.00014146,2]
[390812106,1760170137749,-252.1261336,0.00014146,2]
[390812107,1760170137772,-151.0,0.00014147,2]
[390812108,1760170137794,-151.0,0.00014147,2]
[390812109,1760170137817,-151.0,0.00014147,2]
[390812110,1760170137839,-151.0,0.00014147,2]
[390812111,1760170137865,-151.0,0.00014147,2]
[390812112,1760170137888,-151.0,0.00014147,2]
[390812113,1760170137928,-151.0,0.00014147,2]
[390812114,1760170137952,-151.0,0.00014147,2]
[390812115,1760170138136,-151.0,0.00014147,2]
[390812116,1760170138161,-248.71531821,0.00014147,2]
[390812117,1760170138185,-151.0,0.00014147,2]
[390812118,1760170138208,-151.0,0.00014147,2]
[390812119,1760170138232,-151.0,0.00014147,2]
[390812120,1760170138254,-151.0,0.00014147,2]
[390812121,1760170138281,-151.0,0.00014147,2]
[390812122,1760170138305,-151.0,0.00014147,2]
[390812123,1760170138328,-151.0,0.00014147,2]
[390812124,1760170138353,-151.0,0.00014147,2]
[390812125,1760170138378,-151.0,0.00014147,2]
[390812126,1760170138401,-151.0,0.00014147,2]
[390812127,1760170138428,-151.0,0.00014147,2]
[390812128,1760170138453,-151.0,0.00014147,2]
[390812129,1760170138476,-151.0,0.00014147,2]
[390812130,1760170138498,-200.0,0.00014147,2]
[390812131,1760170138522,-151.0,0.00014147,2]
[390812132,1760170138546,-151.0,0.00014147,2]
[390812133,1760170138569,-151.0,0.00014147,2]
[390812134,1760170138592,-151.0,0.00014147,2]
[390812135,1760170138618,-151.0,0.00014147,2]
[390812136,1760170138642,-151.0,0.00014147,2]
[390812137,1760170138666,-151.0,0.00014147,2]
[390812138,1760170138690,-151.0,0.00014147,2]
[390812139,1760170138713,-151.0,0.00014147,2]
[390812140,1760170138741,-151.0,0.00014147,2]
[390812141,1760170138768,-151.0,0.00014147,2]
[390812142,1760170138792,-151.0,0.00014147,2]
[390812143,1760170138820,-151.0,0.00014147,2]
[390812144,1760170138846,-151.0,0.00014147,2]
[390812145,1760170138871,-151.0,0.00014147,2]
[390812146,1760170138895,-151.0,0.00014147,2]
[390812147,1760170138919,-151.0,0.00014147,2]
[390812148,1760170138944,-151.0,0.00014147,2]
[390812149,1760170138968,-151.0,0.00014147,2]
[390812150,1760170138991,-151.0,0.00014147,2]
[390812151,1760170139014,-151.0,0.00014147,2]
[390812152,1760170139038,-151.0,0.00014147,2]
[390812153,1760170139062,-151.0,0.00014147,2]
[390812154,1760170139088,-151.0,0.00014147,2]
[390812155,1760170139116,-151.0,0.00014147,2]
[390812156,1760170139143,-151.0,0.00014147,2]
[390812157,1760170139167,-151.0,0.00014147,2]
[390812158,1760170139190,-151.0,0.00014147,2]
[390812159,1760170139213,-500.0,0.00014147,2]
[390812160,1760170139238,-151.0,0.00014147,2]
[390812161,1760170139261,-646.65982734,0.00014147,2]
[390812162,1760170139284,-151.0,0.00014147,2]
[390812163,1760170139308,-151.0,0.00014147,2]
[390812164,1760170139332,-151.0,0.00014147,2]
[390812165,1760170139356,-322.6107,0.00014147,2]
[390812166,1760170139379,-500.0,0.00014147,2]
[390812167,1760170139401,-500.0,0.00014147,2]
[390812168,1760170139424,-500.0,0.00014147,2]
[390812169,1760170139449,-500.0,0.00014147,2]
[390812170,1760170139472,-500.0,0.00014147,2]
[390812171,1760170139495,-500.0,0.00014147,2]
[390812172,1760170139518,-500.0,0.00014147,2]
[390812173,1760170139540,-541.70048599,0.00014147,2]
[390812174,1760170139564,-200.0,0.00014147,2]
[390812175,1760170139586,-621.78829552,0.00014147,2]
[390812176,1760170139610,-200.0,0.00014147,2]
[390812177,1760170139633,-372.79494855,0.00014155,2]
[390812178,1760170139656,-15424.65,0.00014156,2]
[390812179,1760170139678,-1907.91637529,0.00014192,2]
[390812180,1760170139700,-1907.91637529,0.00014247,2]
[390812181,1760170143330,150.0,0.00014146,2]
[390812182,1760170143950,242.17274175,0.00014151,2]
[390812519,1760170204141,-2755.0958086,0.00014161,2]
[390812520,1760170204167,-1907.91637529,0.00014329,2]
[390812521,1760170204192,-500.0,0.00014356,2]
[390812522,1760170204216,-1907.91637529,0.00014384,2]
[390812523,1760170204240,-1200.0,0.00014409,2]
[390812524,1760170204263,-500.0,0.0001441,2]
[390812525,1760170204288,-500.0,0.0001441,2]
[390812526,1760170204312,-416.0,0.00014418,2]
[390812527,1760170204334,-300.0,0.00014437,2]
[390812528,1760170204358,-1907.91637529,0.00014438,2]
[390812529,1760170204387,-461.0,0.00014482,2]
[390812530,1760170204411,-1907.91637529,0.00014493,2]
[390812531,1760170204435,-413.23,0.000145,2]
[390812532,1760170204458,-1000.0,0.00014547,2]
[390812533,1760170204482,-1907.91637529,0.00014548,2]
[390812534,1760170204505,-413.23,0.00014578,2]
[390812535,1760170204530,-614.0,0.00014581,2]
[390812536,1760170204556,-614.0,0.00014585,2]
[390812537,1760170204581,-1907.91637529,0.00014603,2]
[390812538,1760170204604,-180.0,0.00014603,2]
[390812539,1760170204627,-161.84506399,0.00014603,2]
[390812540,1760170204653,-614.0,0.0001462,2]
[390812541,1760170204681,-614.0,0.00014622,2]
[390812542,1760170204708,-614.0,0.00014626,2]
[390812543,1760170204736,-614.0,0.00014644,2]
[390812544,1760170204764,-1907.91637529,0.00014658,2]
[390812545,1760170204788,-322.41,0.00014671,2]
[390812546,1760170204813,-200.0,0.00014695,2]
[390812547,1760170204837,-200.0,0.00014695,2]
[390812548,1760170204861,-1000.0,0.000147,2]
[390812549,1760170219354,-474.4,0.00014707,2]
[390812550,1760170219378,-946.72,0.00014708,2]
[390812551,1760170219401,-1907.91637529,0.00014712,2]
[390812552,1760170219428,-871.22603061,0.00014762,2]
[390812553,1760170219452,-1907.91637529,0.00014767,2]
[390812554,1760170219479,-614.0,0.00014776,2]
[390812555,1760170219508,-614.0,0.00014797,2]
[390812556,1760170219533,-461.0,0.00014798,2]
[390812557,1760170219556,-174.72,0.000148,2]
[390812558,1760170219578,-1092.18,0.000148,2]
[390812559,1760170219601,-1182.0,0.00014824,2]
[390812560,1760170219624,-4753.92121881,0.0001485,2]
[390812567,1760170232237,-17614.73952434,0.0001485,2]
[390812568,1760170232249,-812.94393352,0.0001485,2]
[390812569,1760170232261,-29452.48403266,0.0001485,2]
[390812570,1760170232272,-502.24893493,0.0001485,2]
[390812571,1760170232399,-717.99160486,0.0001485,2]
[390812572,1760170232410,-18820.82235603,0.0001485,2]
[390812579,1760170238303,-593.41340116,0.0001485,2]
[390812580,1760170238319,-18765.0,0.0001485,2]
[390812581,1760170238333,-993.88938372,0.0001485,2]
[390812772,1760170240568,-12391.04394252,0.0001485,2]
[390812774,1760170240580,-1190.82612164,0.0001485,2]
[390812780,1760170240628,-2211.4,0.0001485,2]
[390812783,1760170240639,-3557.77625699,0.0001485,2]
[390812785,1760170240650,-500.0,0.0001485,2]
[390812787,1760170240661,-302.17412442,0.0001485,2]
[390812790,1760170240682,-502.29884863,0.0001485,2]
[390812792,1760170240695,-547.03466666,0.0001485,2]
[390812795,1760170240708,-12945.69080296,0.0001485,2]
[390812797,1760170240718,-398.76416,0.0001485,2]
[390812799,1760170240728,-614.0,0.00014862,2]
[390812801,1760170240738,-3074.0,0.00014879,2]
[390812803,1760170240747,-200.0,0.0001488,2]
[390812805,1760170240757,-871.2260306,0.00014882,2]
[390812807,1760170240767,-1000.0,0.000149,2]
[390812810,1760170240777,-480.60049228,0.000149,2]
[390812812,1760170240787,-1086.63,0.000149,2]
[390812814,1760170240798,-5000.0,0.000149,2]
[390812816,1760170240808,-163.14779999,0.000149,2]
[390812818,1760170240819,-385.24018963,0.000149,2]
[390812820,1760170240829,-191.64836349,0.000149,2]
[390812822,1760170240841,-255.35697844,0.000149,2]
[390812824,1760170240851,-614.0,0.00014924,2]
[390812826,1760170240861,-6439.0,0.00014924,2]
[390812828,1760170240871,-622.0,0.00014924,2]
[390812830,1760170240881,-2218.0,0.00014924,2]
[390812832,1760170240891,-4120.0,0.00014924,2]
[390812834,1760170240901,-614.0,0.00014931,2]
[390812836,1760170240912,-1087.72117069,0.00014939,2]
[390812839,1760170240922,-297.84660845,0.00014973,2]
[390812841,1760170240935,-500.0,0.00014973,2]
[390812843,1760170240945,-500.0,0.00014973,2]
[390812845,1760170240955,-501.04316787,0.00014973,2]
[390812847,1760170240964,-500.0,0.00014973,2]
[390812849,1760170240974,-533.15473545,0.00014973,2]
[390812851,1760170240984,-500.0,0.00014973,2]
[390812853,1760170240994,-500.0,0.00014973,2]
[390812855,1760170241005,-500.0,0.00014973,2]
[390812857,1760170241015,-500.0,0.00014973,2]
[390812859,1760170241024,-500.0,0.00014973,2]
[390812861,1760170241034,-500.0,0.00014973,2]
[390812863,1760170241044,-331.51333905,0.00014973,2]
[390812865,1760170241053,-500.0,0.00014973,2]
[390812867,1760170241064,-500.0,0.00014973,2]
[390812869,1760170241074,-500.0,0.00014973,2]
[390812871,1760170241084,-500.0,0.00014973,2]
[390812873,1760170241094,-500.41217275,0.00014973,2]
[390812875,1760170241107,-500.0,0.00014973,2]
[390812877,1760170241117,-500.0,0.00014973,2]
[390812879,1760170241127,-398.76417,0.0001498,2]
[390812882,1760170241137,-3252.8464666,0.0001499,2]
[390812884,1760170241147,-500.0,0.0001499,2]
[390812886,1760170241157,-201.01884101,0.0001499,2]
[390812888,1760170241167,-150.0,0.0001499,2]
[390812890,1760170241178,-150.0,0.0001499,2]
[390812892,1760170241191,-150.0,0.0001499,2]
[390812894,1760170241201,-150.0,0.0001499,2]
[390812896,1760170241210,-150.0,0.0001499,2]
[390812898,1760170241220,-150.0,0.0001499,2]
[390812900,1760170241230,-500.0,0.0001499,2]
[390812902,1760170241240,-150.0,0.0001499,2]
[390812904,1760170241249,-2437.0,0.0001499,2]
[390812906,1760170241259,-500.0,0.0001499,2]
[390812908,1760170241269,-150.0,0.0001499,2]
[390812910,1760170241279,-150.0,0.0001499,2]
[390812912,1760170241289,-500.0,0.0001499,2]
[390812914,1760170241299,-150.0,0.0001499,2]
[390812916,1760170241308,-150.0,0.0001499,2]
[390812918,1760170241318,-150.0,0.0001499,2]
[390812921,1760170241328,-495.0,0.0001499,2]
[390812923,1760170241338,-500.0,0.0001499,2]
[390812925,1760170241348,-150.0,0.0001499,2]
[390812927,1760170241359,-487.0,0.0001499,2]
[390812929,1760170241368,-500.0,0.0001499,2]
[390812931,1760170241378,-1615.46,0.00014991,2]
[390812933,1760170241388,-14416.1582117,0.00014999,2]
[390812935,1760170241398,-150.0,0.00014999,2]
[390812937,1760170241407,-2524.0,0.00015,2]
[390812939,1760170241416,-10521.09288292,0.00015,2]
[390812943,1760170241449,-1000.462372,0.00015,2]
[390812945,1760170241460,-521.72845011,0.00015,2]
[390812948,1760170241471,-6170.25,0.00015,2]
[390813078,1760170242734,-2818.48219106,0.00015,2]
[390813301,1760170244992,-176.48829352,0.00014849,2]
[390813303,1760170245005,-1696.0,0.00014939,2]
[390813306,1760170245017,-340.71170648,0.00015,2]
[390813317,1760170245116,-27635.526,0.00015,2]
[390813588,1760170247826,-53302.61216568,0.00015,2]
[390813594,1760170247879,-1828.0,0.00015,2]
[390817781,1760170378905,1135.85,7.023e-05,2]
[390817782,1760170380000,1135.85,7.393e-05,2]
[390817783,1760170380077,1135.85,7.763e-05,2]
[390817784,1760170380145,1135.85,8.132e-05,2]